[Event "Tournoi fermé pour norme de MI de Créon 2025"]
[Site "CREON, France"]
[Date "2025.07.31"]
[Round "5.2"]
[White "Lacan-Rus, David"]
[Black "Jerez Perez, Alfonso"]
[Result "0-1"]
[TimeControl "1h30/40 - 30' + [30'']"]
[WhiteElo "2369"]
[BlackElo "2328"]

1. e4 {[%clk 01:30:54]} {[%emt 00:00:05]} e5 {[%clk 01:29:35]} {[%emt
00:01:27]} 2. Nf3 {[%clk 01:30:52]} {[%emt 00:00:31]} Nc6 {[%clk 01:29:56]}
{[%emt 00:00:09]} 3. d4 {[%clk 01:30:57]} {[%emt 00:00:24]} exd4 {[%clk
01:30:00]} {[%emt 00:00:26]} 4. Nxd4 {[%clk 01:31:19]} {[%emt 00:00:07]} Bc5
{[%clk 01:27:54]} {[%emt 00:02:36]} 5. Nb3 {[%clk 01:31:35]} {[%emt 00:00:14]}
Bb4+ {[%clk 01:28:16]} {[%emt 00:00:08]} 6. Bd2 {[%clk 01:21:49]} {[%emt
00:10:17]} a5 {[%clk 01:27:06]} {[%emt 00:01:41]} 7. a3 {[%clk 01:17:19]}
{[%emt 00:05:00]} Be7 {[%clk 01:26:39]} {[%emt 00:00:56]} 8. Bc3 {[%clk
01:15:05]} {[%emt 00:02:44]} Bf6 {[%clk 01:21:33]} {[%emt 00:05:36]} 9. Bb5
{[%clk 01:10:36]} {[%emt 00:04:59]} a4 {[%clk 01:07:43]} {[%emt 00:14:21]} 10.
Nc1 {[%clk 01:05:40]} {[%emt 00:05:25]} Qe7 {[%clk 00:59:37]} {[%emt 00:08:36]}
11. O-O {[%clk 01:00:21]} {[%emt 00:05:49]} Qc5 {[%clk 00:56:25]} {[%emt
00:03:42]} 12. Bxc6 {[%clk 00:53:59]} {[%emt 00:06:52]} Qxc6 {[%clk 00:54:41]}
{[%emt 00:02:13]} 13. e5 {[%clk 00:45:11]} {[%emt 00:09:20]} Be7 {[%clk
00:54:28]} {[%emt 00:00:42]} 14. Nd3 {[%clk 00:42:59]} {[%emt 00:02:42]} b6
{[%clk 00:47:31]} {[%emt 00:07:28]} 15. e6 {[%clk 00:36:54]} {[%emt 00:06:35]}
f6 {[%clk 00:47:52]} {[%emt 00:00:08]} 16. Nf4 {[%clk 00:33:17]} {[%emt
00:04:07]} dxe6 {[%clk 00:43:00]} {[%emt 00:05:22]} 17. Qh5+ {[%clk 00:30:34]}
{[%emt 00:03:13]} Kf8 {[%clk 00:42:17]} {[%emt 00:01:14]} 18. Ng6+ {[%clk
00:30:43]} {[%emt 00:00:21]} hxg6 {[%clk 00:42:41]} {[%emt 00:00:06]} 19. Qxh8
{[%clk 00:31:10]} {[%emt 00:00:04]} Bb7 {[%clk 00:42:26]} {[%emt 00:00:45]} 20.
Qh3 {[%clk 00:30:54]} {[%emt 00:00:45]} Nh6 {[%clk 00:37:32]} {[%emt 00:05:24]}
21. Nd2 {[%clk 00:28:25]} {[%emt 00:03:00]} Rd8 {[%clk 00:33:52]} {[%emt
00:04:09]} 22. Rfe1 {[%clk 00:27:45]} {[%emt 00:01:11]} Kf7 {[%clk 00:33:29]}
{[%emt 00:00:53]} 23. Ne4 {[%clk 00:26:56]} {[%emt 00:01:20]} Rd5 {[%clk
00:32:46]} {[%emt 00:01:13]} 24. Qe3 {[%clk 00:23:18]} {[%emt 00:04:09]} Nf5
{[%clk 00:25:32]} {[%emt 00:07:44]} 25. Qf3 {[%clk 00:22:50]} {[%emt 00:00:57]}
Kg8 {[%clk 00:24:16]} {[%emt 00:01:46]} 26. Re2 {[%clk 00:18:48]} {[%emt
00:04:33]} Nh4 {[%clk 00:12:59]} {[%emt 00:11:47]} 27. Qg3 {[%clk 00:16:24]}
{[%emt 00:02:54]} f5 {[%clk 00:11:24]} {[%emt 00:02:05]} 28. Nd2 {[%clk
00:11:50]} {[%emt 00:05:04]} f4 {[%clk 00:06:13]} {[%emt 00:05:41]} 29. Qh3
{[%clk 00:10:18]} {[%emt 00:02:02]} Rg5 {[%clk 00:05:58]} {[%emt 00:00:45]} 30.
f3 {[%clk 00:07:21]} {[%emt 00:03:28]} Nxf3+ {[%clk 00:05:44]} {[%emt
00:00:44]} 31. Nxf3 {[%clk 00:06:10]} {[%emt 00:01:40]} Qxf3 {[%clk 00:06:07]}
{[%emt 00:00:08]} 32. Qxf3 {[%clk 00:06:28]} {[%emt 00:00:11]} Bxf3 {[%clk
00:06:32]} {[%emt 00:00:05]} 33. Rd2 {[%clk 00:06:54]} {[%emt 00:00:04]} Bc5+
{[%clk 00:04:29]} {[%emt 00:02:33]} 34. Kf1 {[%clk 00:06:51]} {[%emt 00:00:33]}
Bc6 {[%clk 00:04:03]} {[%emt 00:00:57]} 35. Bd4 {[%clk 00:05:06]} {[%emt
00:02:15]} Bb5+ {[%clk 00:01:42]} {[%emt 00:02:51]} 36. Kf2 {[%clk 00:01:52]}
{[%emt 00:03:44]} Rd5 {[%clk 00:01:52]} {[%emt 00:00:21]} 37. Rad1 {[%clk
00:02:15]} {[%emt 00:00:07]} Rxd4 {[%clk 00:02:13]} {[%emt 00:00:09]} 38. Rxd4
{[%clk 00:02:42]} {[%emt 00:00:02]} e5 {[%clk 00:02:37]} {[%emt 00:00:05]} 0-1

[Event "Tournoi fermé pour norme de MI de Créon 2025"]
[Site "CREON, France"]
[Date "2025.07.31"]
[Round "5.5"]
[White "Llari, Marc"]
[Black "Pichon, Ewen"]
[Result "1/2-1/2"]
[TimeControl "1h30/40 - 30' + [30'']"]
[WhiteElo "2341"]
[BlackElo "2311"]

1. e4 e5 {[%emt 00:00:01]} 2. Nf3 Nc6 3. Bb5 a6 4. Ba4 Nge7 5. Nc3 {[%emt
00:00:02]} Ng6 {[%emt 00:00:01]} 6. h4 Be7 7. h5 Nh4 {[%emt 00:00:02]} 8. Nxh4
{[%emt 00:00:01]} Bxh4 9. d3 {[%emt 00:00:02]} d6 {[%emt 00:00:02]} 10. g3
{[%emt 00:00:03]} Be7 {[%emt 00:00:02]} 11. f4 {[%emt 00:00:11]} b5 12. Bb3 Nd4
{[%emt 00:00:01]} 13. Be3 {[%emt 00:00:05]} Nxb3 {[%emt 00:00:02]} 14. axb3
{[%emt 00:00:02]} c6 15. Qf3 {[%emt 00:00:03]} Qd7 16. f5 {[%emt 00:00:01]} Bb7
{[%emt 00:00:01]} 17. d4 {[%emt 00:00:06]} Bf6 {[%emt 00:00:02]} 18. O-O-O
{[%emt 00:00:01]} O-O-O {[%emt 00:00:02]} 19. h6 {[%emt 00:00:03]} exd4 {[%emt
00:00:02]} 20. hxg7 {[%emt 00:00:02]} Rhg8 21. Bxd4 {[%emt 00:00:03]} Bxd4
{[%emt 00:00:02]} 22. Rxd4 {[%emt 00:00:02]} Rxg7 {[%emt 00:00:02]} 23. Rh6
{[%emt 00:00:02]} Qe7 24. Qf4 {[%emt 00:00:05]} f6 {[%emt 00:00:01]} 25. Rd3
{[%emt 00:00:02]} Kc7 {[%emt 00:00:01]} 26. b4 {[%emt 00:00:03]} Rdg8 {[%emt
00:00:02]} 27. Qh4 {[%emt 00:00:03]} Rf7 28. Re3 {[%emt 00:00:03]} Bc8 {[%emt
00:00:01]} 29. Re2 {[%emt 00:00:03]} Bd7 {[%emt 00:00:02]} 30. Rh2 {[%emt
00:00:03]} Qe5 {[%emt 00:00:01]} 31. Qf4 {[%emt 00:00:07]} Qd4 {[%emt
00:00:01]} 32. Rxh7 {[%emt 00:00:03]} Rxh7 {[%emt 00:00:01]} 33. Rxh7 {[%emt
00:00:02]} Qg1+ 34. Nd1 {[%emt 00:00:01]} Rxg3 {[%emt 00:00:02]} 35. Qf2 {[%emt
00:00:01]} Rg4 {[%emt 00:00:02]} 36. Qxg1 {[%emt 00:00:03]} Rxg1 {[%emt
00:00:01]} 37. Kd2 {[%emt 00:00:04]} d5 {[%emt 00:00:01]} 38. exd5 {[%emt
00:00:02]} Kd6 39. Rf7 {[%emt 00:00:02]} cxd5 {[%emt 00:00:04]} 40. Rxf6+
{[%emt 00:00:01]} Ke5 {[%emt 00:00:02]} 41. Rg6 {[%emt 00:00:02]} Rh1 {[%emt
00:00:02]} 42. f6 {[%emt 00:00:02]} Rh2+ {[%emt 00:00:01]} 43. Ke1 {[%emt
00:00:01]} Be6 {[%emt 00:00:03]} 44. Nf2 {[%emt 00:00:03]} Rh4 {[%emt
00:00:03]} 45. f7 {[%emt 00:00:03]} Bxf7 {[%emt 00:00:02]} 46. Rxa6 {[%emt
00:00:06]} Bg8 {[%emt 00:00:03]} 47. Rg6 {[%emt 00:00:02]} Bh7 {[%emt
00:00:01]} 48. Rg4 {[%emt 00:00:01]} Rxg4 {[%emt 00:00:02]} 49. Nxg4+ {[%emt
00:00:02]} Kf4 {[%emt 00:00:02]} 50. Nf6 {[%emt 00:00:01]} Bxc2 {[%emt
00:00:02]} 51. Nxd5+ {[%emt 00:00:03]} Ke5 {[%emt 00:00:02]} 52. Nc7 {[%emt
00:00:01]} Kd4 {[%emt 00:00:01]} 53. Nxb5+ {[%emt 00:00:02]} Kc4 {[%emt
00:00:01]} 54. Na3+ {[%emt 00:00:02]} Kxb4 {[%emt 00:00:01]} 55. Nxc2+ {[%emt
00:00:02]} Kb3 56. Kd2 {[%emt 00:00:05]} Kxb2 {[%emt 00:00:01]} 1/2-1/2

[ePGN "0.1;DGT LiveChess/2.2.7"]

[Event "Tournoi fermé pour norme de MI de Créon 2025"]
[Site "CREON, France"]
[Date "2025.07.31"]
[Round "6.4"]
[White "Le Hetet, Nicolas"]
[Black "Llari, Marc"]
[Result "0-1"]
[TimeControl "1h30/40 - 30' + [30'']"]
[WhiteElo "2288"]
[BlackElo "2341"]

1. e4 {[%clk 01:30:59]} {[%emt 00:20:15]} c6 {[%clk 01:30:49]} {[%emt
00:00:11]} 2. d4 {[%clk 01:31:13]} {[%emt 00:00:15]} d5 {[%clk 01:31:10]}
{[%emt 00:00:08]} 3. e5 {[%clk 01:31:08]} {[%emt 00:00:36]} c5 {[%clk
01:31:26]} {[%emt 00:00:14]} 4. c4 {[%clk 01:30:43]} {[%emt 00:00:55]} cxd4
{[%clk 01:31:51]} {[%emt 00:00:05]} 5. Ne2 {[%clk 01:30:53]} {[%emt 00:00:20]}
e6 {[%clk 01:31:06]} {[%emt 00:01:16]} 6. Nxd4 {[%clk 01:31:11]} {[%emt
00:00:11]} Nc6 {[%clk 01:31:31]} {[%emt 00:00:05]} 7. Nc3 {[%clk 01:30:59]}
{[%emt 00:00:42]} Bc5 {[%clk 01:31:54]} {[%emt 00:00:07]} 8. Nxc6 {[%clk
01:29:57]} {[%emt 00:01:32]} bxc6 {[%clk 01:32:10]} {[%emt 00:00:14]} 9. Bd3
{[%clk 01:29:13]} {[%emt 00:01:14]} Ne7 {[%clk 01:30:53]} {[%emt 00:01:47]} 10.
O-O {[%clk 01:26:59]} {[%emt 00:02:44]} a5 {[%clk 01:29:50]} {[%emt 00:01:31]}
11. Qg4 {[%clk 01:25:44]} {[%emt 00:01:46]} Ng6 {[%clk 01:29:18]} {[%emt
00:01:01]} 12. cxd5 {[%clk 01:16:36]} {[%emt 00:09:39]} exd5 {[%clk 01:25:46]}
{[%emt 00:04:02]} 13. Qg3 {[%clk 01:14:35]} {[%emt 00:02:31]} O-O {[%clk
01:18:28]} {[%emt 00:07:47]} 14. Bg5 {[%clk 01:09:23]} {[%emt 00:05:43]} Qc7
{[%clk 01:17:57]} {[%emt 00:01:01]} 15. Rfe1 {[%clk 01:06:52]} {[%emt
00:03:02]} Ba6 {[%clk 01:16:00]} {[%emt 00:02:27]} 16. Rac1 {[%clk 01:01:19]}
{[%emt 00:06:03]} Bxd3 {[%clk 01:12:30]} {[%emt 00:03:59]} 17. Qxd3 {[%clk
01:01:42]} {[%emt 00:00:07]} Qa7 {[%clk 01:06:11]} {[%emt 00:06:47]} 18. Re2
{[%clk 00:55:32]} {[%emt 00:06:42]} Bd4 {[%clk 01:01:09]} {[%emt 00:05:30]} 19.
Rce1 {[%clk 00:38:52]} {[%emt 00:17:12]} Rae8 {[%clk 00:54:23]} {[%emt
00:07:14]} 20. Qg3 {[%clk 00:36:39]} {[%emt 00:02:45]} Qb8 {[%clk 00:52:18]}
{[%emt 00:02:34]} 21. Bf4 {[%clk 00:31:34]} {[%emt 00:05:36]} Nxf4 {[%clk
00:51:07]} {[%emt 00:01:40]} 22. Qxf4 {[%clk 00:32:01]} {[%emt 00:00:03]} Bxe5
{[%clk 00:50:53]} {[%emt 00:00:44]} 23. Qa4 {[%clk 00:28:52]} {[%emt 00:03:39]}
Bxc3 {[%clk 00:50:47]} {[%emt 00:00:35]} 0-1

[Event "Tournoi fermé pour norme de MI de Créon 2025"]
[Site "CREON, France"]
[Date "2025.07.31"]
[Round "6.5"]
[White "Malka, Samuel"]
[Black "Pichon, Ewen"]
[Result "0-1"]
[TimeControl "1h30/40 - 30' + [30'']"]
[WhiteElo "2268"]
[BlackElo "2311"]

1. d4 {[%clk 01:30:55]} {[%emt 00:00:06]} Nf6 {[%clk 01:30:55]} {[%emt
00:00:05]} 2. c4 {[%clk 01:31:20]} {[%emt 00:00:05]} e6 {[%clk 01:31:22]}
{[%emt 00:00:04]} 3. Nf3 {[%clk 01:31:46]} {[%emt 00:00:03]} d5 {[%clk
01:31:47]} {[%emt 00:00:05]} 4. g3 {[%clk 01:32:12]} {[%emt 00:00:04]} Bb4+
{[%clk 01:31:25]} {[%emt 00:00:52]} 5. Bd2 {[%clk 01:31:55]} {[%emt 00:00:46]}
Be7 {[%clk 01:29:55]} {[%emt 00:02:01]} 6. Bg2 {[%clk 01:31:40]} {[%emt
00:00:45]} Nbd7 {[%clk 01:29:57]} {[%emt 00:00:29]} 7. Qc2 {[%clk 01:28:25]}
{[%emt 00:03:44]} c6 {[%clk 01:30:00]} {[%emt 00:00:28]} 8. O-O {[%clk
01:21:54]} {[%emt 00:07:00]} Ne4 {[%clk 01:27:59]} {[%emt 00:02:32]} 9. Be3
{[%clk 01:22:20]} {[%emt 00:00:04]} O-O {[%clk 01:25:25]} {[%emt 00:03:04]} 10.
Rd1 {[%clk 01:10:48]} {[%emt 00:12:02]} Nd6 {[%clk 01:18:37]} {[%emt 00:07:19]}
11. b3 {[%clk 01:10:15]} {[%emt 00:01:04]} a5 {[%clk 01:18:32]} {[%emt
00:00:35]} 12. Bf4 {[%clk 01:06:46]} {[%emt 00:03:57]} a4 {[%clk 01:09:13]}
{[%emt 00:09:50]} 13. Nbd2 {[%clk 01:04:52]} {[%emt 00:02:23]} f5 {[%clk
01:07:33]} {[%emt 00:02:11]} 14. Ne5 {[%clk 00:53:18]} {[%emt 00:12:03]} g5
{[%clk 01:06:27]} {[%emt 00:01:37]} 15. Nxd7 {[%clk 00:52:14]} {[%emt
00:01:34]} Bxd7 {[%clk 01:06:48]} {[%emt 00:00:09]} 16. Bxd6 {[%clk 00:51:13]}
{[%emt 00:01:31]} Bxd6 {[%clk 01:07:12]} {[%emt 00:00:06]} 17. Nf3 {[%clk
00:46:40]} {[%emt 00:05:02]} Qf6 {[%clk 01:06:07]} {[%emt 00:01:36]} 18. e3
{[%clk 00:43:50]} {[%emt 00:03:19]} Be8 {[%clk 00:58:25]} {[%emt 00:08:13]} 19.
c5 {[%clk 00:40:31]} {[%emt 00:03:49]} Bc7 {[%clk 00:58:25]} {[%emt 00:00:29]}
20. bxa4 {[%clk 00:40:31]} {[%emt 00:00:30]} f4 {[%clk 00:56:54]} {[%emt
00:02:01]} 21. exf4 {[%clk 00:36:15]} {[%emt 00:04:45]} gxf4 {[%clk 00:57:18]}
{[%emt 00:00:07]} 22. g4 {[%clk 00:34:28]} {[%emt 00:02:16]} Qg7 {[%clk
00:55:52]} {[%emt 00:01:56]} 23. h3 {[%clk 00:33:50]} {[%emt 00:01:08]} Bg6
{[%clk 00:55:54]} {[%emt 00:00:29]} 24. Qe2 {[%clk 00:27:29]} {[%emt 00:06:51]}
Qf6 {[%clk 00:54:07]} {[%emt 00:02:17]} 25. g5 {[%clk 00:22:45]} {[%emt
00:05:13]} Qe7 {[%clk 00:51:36]} {[%emt 00:03:01]} 26. Nh4 {[%clk 00:20:47]}
{[%emt 00:02:27]} f3 {[%clk 00:40:50]} {[%emt 00:11:18]} 27. Nxf3 {[%clk
00:19:14]} {[%emt 00:02:02]} Rxa4 {[%clk 00:39:25]} {[%emt 00:01:56]} 28. h4
{[%clk 00:16:32]} {[%emt 00:03:12]} Qf7 {[%clk 00:39:12]} {[%emt 00:00:44]} 29.
Qe3 {[%clk 00:04:55]} {[%emt 00:12:06]} Be4 {[%clk 00:34:16]} {[%emt 00:05:26]}
30. Ne1 {[%clk 00:03:53]} {[%emt 00:01:32]} Ra3 {[%clk 00:34:23]} {[%emt
00:00:24]} 31. Nd3 {[%clk 00:02:38]} {[%emt 00:01:44]} Bxd3 {[%clk 00:34:26]}
{[%emt 00:00:28]} 32. Rxd3 {[%clk 00:03:02]} {[%emt 00:00:07]} Rxd3 {[%clk
00:34:53]} {[%emt 00:00:03]} 33. Qxd3 {[%clk 00:03:27]} {[%emt 00:00:04]} Qxf2+
{[%clk 00:35:02]} {[%emt 00:00:21]} 34. Kh1 {[%clk 00:03:53]} {[%emt 00:00:04]}
Rf4 {[%clk 00:35:21]} {[%emt 00:00:11]} 35. Bh3 {[%clk 00:03:48]} {[%emt
00:00:35]} Rxh4 {[%clk 00:35:42]} {[%emt 00:00:10]} 0-1

[Event "Tournoi fermé pour norme de MI de Créon 2025"]
[Site "CREON, France"]
[Date "2025.07.31"]
[Round "6.2"]
[White "Mohammad Nubairshah"]
[Black "Villegas, Pierre"]
[Result "1-0"]
[TimeControl "1h30/40 - 30' + [30'']"]
[WhiteElo "2378"]
[BlackElo "2291"]

1. c4 {[%clk 01:29:18]} {[%emt 00:01:40]} c5 {[%clk 01:30:15]} {[%emt
00:00:45]} 2. g3 {[%clk 01:29:42]} {[%emt 00:00:06]} Nc6 {[%clk 01:30:14]}
{[%emt 00:00:31]} 3. Bg2 {[%clk 01:30:06]} {[%emt 00:00:06]} g6 {[%clk
01:30:36]} {[%emt 00:00:07]} 4. Nc3 {[%clk 01:30:17]} {[%emt 00:00:19]} Bg7
{[%clk 01:31:00]} {[%emt 00:00:06]} 5. a3 {[%clk 01:27:55]} {[%emt 00:02:53]}
b6 {[%clk 01:29:51]} {[%emt 00:01:39]} 6. e4 {[%clk 01:16:20]} {[%emt
00:12:04]} Bb7 {[%clk 01:26:40]} {[%emt 00:03:40]} 7. d3 {[%clk 01:16:40]}
{[%emt 00:00:10]} d6 {[%clk 01:23:17]} {[%emt 00:03:54]} 8. Bg5 {[%clk
01:12:23]} {[%emt 00:04:46]} Nf6 {[%clk 01:19:30]} {[%emt 00:04:17]} 9. Rb1
{[%clk 01:10:46]} {[%emt 00:02:07]} h6 {[%clk 01:12:09]} {[%emt 00:07:51]} 10.
Be3 {[%clk 01:10:01]} {[%emt 00:01:15]} O-O {[%clk 01:03:11]} {[%emt 00:09:27]}
11. h3 {[%clk 01:06:07]} {[%emt 00:04:25]} Ne8 {[%clk 00:54:14]} {[%emt
00:09:28]} 12. Qd2 {[%clk 01:04:30]} {[%emt 00:02:07]} Kh7 {[%clk 00:54:34]}
{[%emt 00:00:09]} 13. h4 {[%clk 00:54:50]} {[%emt 00:10:11]} Nd4 {[%clk
00:45:04]} {[%emt 00:10:00]} 14. Nge2 {[%clk 00:41:39]} {[%emt 00:13:41]} Nf5
{[%clk 00:37:39]} {[%emt 00:07:55]} 15. g4 {[%clk 00:32:47]} {[%emt 00:09:22]}
Nxe3 {[%clk 00:37:17]} {[%emt 00:00:52]} 16. Qxe3 {[%clk 00:33:15]} {[%emt
00:00:02]} Bxc3+ {[%clk 00:23:02]} {[%emt 00:14:46]} 17. bxc3 {[%clk 00:31:18]}
{[%emt 00:02:27]} Qd7 {[%clk 00:22:30]} {[%emt 00:01:02]} 18. Ng3 {[%clk
00:25:58]} {[%emt 00:05:49]} Ng7 {[%clk 00:20:55]} {[%emt 00:02:05]} 19. f4
{[%clk 00:24:18]} {[%emt 00:02:11]} f5 {[%clk 00:18:11]} {[%emt 00:03:14]} 20.
h5 {[%clk 00:23:16]} {[%emt 00:01:32]} gxh5 {[%clk 00:16:23]} {[%emt 00:02:19]}
21. gxf5 {[%clk 00:15:22]} {[%emt 00:08:23]} Rg8 {[%clk 00:13:46]} {[%emt
00:03:06]} 22. Bf3 {[%clk 00:09:01]} {[%emt 00:06:51]} Qa4 {[%clk 00:11:58]}
{[%emt 00:02:19]} 23. Rb2 {[%clk 00:08:25]} {[%emt 00:01:06]} Qxa3 {[%clk
00:12:05]} {[%emt 00:00:24]} 24. Rbh2 {[%clk 00:08:47]} {[%emt 00:00:07]} Qxc3+
{[%clk 00:12:09]} {[%emt 00:00:26]} 25. Kf2 {[%clk 00:07:37]} {[%emt 00:01:39]}
Qb2+ {[%clk 00:09:59]} {[%emt 00:02:40]} 26. Ne2 {[%clk 00:07:44]} {[%emt
00:00:23]} Raf8 {[%clk 00:09:24]} {[%emt 00:01:06]} 27. Bxh5 {[%clk 00:07:32]}
{[%emt 00:00:42]} Nxh5 {[%clk 00:05:13]} {[%emt 00:04:41]} 28. Rxh5 {[%clk
00:07:59]} {[%emt 00:00:03]} Qg7 {[%clk 00:05:29]} {[%emt 00:00:14]} 29. Rxh6+
{[%clk 00:03:26]} {[%emt 00:05:03]} Qxh6 {[%clk 00:05:58]} {[%emt 00:00:01]} 30.
Rxh6+ {[%clk 00:03:55]} {[%emt 00:00:01]} Kxh6 {[%clk 00:06:21]} {[%emt
00:00:07]} 31. Qh3+ {[%clk 00:04:16]} {[%emt 00:00:08]} Kg7 {[%clk 00:06:50]}
{[%emt 00:00:01]} 32. Qg4+ {[%clk 00:04:40]} {[%emt 00:00:06]} Kf7 {[%clk
00:05:46]} {[%emt 00:01:33]} 33. Qh5+ {[%clk 00:05:09]} {[%emt 00:00:01]} Kf6
{[%clk 00:05:19]} {[%emt 00:00:57]} 34. Ng3 {[%clk 00:04:26]} {[%emt 00:01:12]}
a5 {[%clk 00:05:31]} {[%emt 00:00:19]} 35. Qh6+ {[%clk 00:04:36]} {[%emt
00:00:20]} Kf7 {[%clk 00:05:58]} {[%emt 00:00:04]} 36. Qe6+ {[%clk 00:04:53]}
{[%emt 00:00:13]} Ke8 {[%clk 00:05:59]} {[%emt 00:00:29]} 37. f6 {[%clk
00:05:21]} 1-0

[Event "Tournoi fermé pour norme de MI de Créon 2025"]
[Site "CREON, France"]
[Date "2025.07.31"]
[Round "6.1"]
[White "Lamaze, Simon"]
[Black "Lacan-Rus, David"]
[Result "1/2-1/2"]
[TimeControl "1h30/40 - 30' + [30'']"]
[WhiteElo "2458"]
[BlackElo "2369"]

1. e4 {[%clk 01:30:58]} {[%emt 00:00:02]} c5 {[%clk 01:30:55]} {[%emt
00:00:05]} 2. Nf3 {[%clk 01:31:26]} {[%emt 00:00:04]} d6 {[%clk 01:31:18]}
{[%emt 00:00:07]} 3. d4 {[%clk 01:31:52]} {[%emt 00:00:02]} cxd4 {[%clk
01:31:41]} {[%emt 00:00:07]} 4. Nxd4 {[%clk 01:32:20]} {[%emt 00:00:01]} Nf6
{[%clk 01:32:01]} {[%emt 00:00:10]} 5. Nc3 {[%clk 01:32:47]} {[%emt 00:00:04]}
a6 {[%clk 01:32:26]} {[%emt 00:00:06]} 6. g3 {[%clk 01:32:48]} {[%emt
00:00:30]} e5 {[%clk 01:30:54]} {[%emt 00:01:59]} 7. Nb3 {[%clk 01:32:23]}
{[%emt 00:00:56]} Be7 {[%clk 01:30:47]} {[%emt 00:00:37]} 8. Bg5 {[%clk
01:32:46]} {[%emt 00:00:06]} Be6 {[%clk 01:29:54]} {[%emt 00:01:22]} 9. Bxf6
{[%clk 01:31:32]} {[%emt 00:01:45]} Bxf6 {[%clk 01:30:03]} {[%emt 00:00:21]} 10.
Qd3 {[%clk 01:31:58]} {[%emt 00:00:04]} Nc6 {[%clk 01:26:49]} {[%emt 00:03:44]}
11. Nd5 {[%clk 01:26:56]} {[%emt 00:05:32]} Rc8 {[%clk 01:25:21]} {[%emt
00:01:58]} 12. c3 {[%clk 01:24:19]} {[%emt 00:03:08]} O-O {[%clk 01:19:16]}
{[%emt 00:06:34]} 13. Be2 {[%clk 01:19:26]} {[%emt 00:05:24]} Bg5 {[%clk
01:17:46]} {[%emt 00:02:00]} 14. Rd1 {[%clk 01:12:29]} {[%emt 00:07:27]} b5
{[%clk 01:08:38]} {[%emt 00:09:38]} 15. h4 {[%clk 01:02:10]} {[%emt 00:10:50]}
Bh6 {[%clk 01:08:28]} {[%emt 00:00:39]} 16. O-O {[%clk 00:56:36]} {[%emt
00:06:04]} g6 {[%clk 01:06:32]} {[%emt 00:02:26]} 17. Ne3 {[%clk 00:50:01]}
{[%emt 00:07:06]} Qc7 {[%clk 00:55:22]} {[%emt 00:11:40]} 18. Qxd6 {[%clk
00:35:40]} {[%emt 00:14:51]} Bxe3 {[%clk 00:43:59]} {[%emt 00:11:53]} 19. Qxc7
{[%clk 00:35:36]} {[%emt 00:00:34]} Bxf2+ {[%clk 00:44:03]} {[%emt 00:00:26]}
20. Rxf2 {[%clk 00:35:59]} {[%emt 00:00:07]} Rxc7 {[%clk 00:44:29]} {[%emt
00:00:05]} 21. Nc5 {[%clk 00:36:21]} {[%emt 00:00:08]} Bc8 {[%clk 00:37:08]}
{[%emt 00:07:51]} 22. Rf6 {[%clk 00:34:00]} {[%emt 00:02:51]} Kg7 {[%clk
00:30:52]} {[%emt 00:06:46]} 23. Rfd6 {[%clk 00:33:12]} {[%emt 00:01:18]} a5
{[%clk 00:29:03]} {[%emt 00:02:18]} 24. Nd7 {[%clk 00:24:39]} {[%emt 00:09:03]}
Nd4 {[%clk 00:18:45]} {[%emt 00:10:49]} 25. Nxf8 {[%clk 00:21:22]} {[%emt
00:03:47]} Nxe2+ {[%clk 00:18:54]} {[%emt 00:00:21]} 26. Kf2 {[%clk 00:21:50]}
{[%emt 00:00:02]} Kxf8 {[%clk 00:19:13]} {[%emt 00:00:11]} 27. Kxe2 {[%clk
00:22:08]} {[%emt 00:00:12]} Bg4+ {[%clk 00:19:38]} {[%emt 00:00:05]} 28. Ke1
{[%clk 00:17:33]} {[%emt 00:05:05]} Bxd1 {[%clk 00:20:02]} {[%emt 00:00:07]} 29.
Kxd1 {[%clk 00:17:59]} {[%emt 00:00:04]} b4 {[%clk 00:18:10]} {[%emt 00:02:22]}
30. Kc2 {[%clk 00:17:57]} {[%emt 00:00:32]} bxc3 {[%clk 00:14:18]} {[%emt
00:04:23]} 31. b3 {[%clk 00:18:04]} {[%emt 00:00:23]} a4 {[%clk 00:12:03]}
{[%emt 00:02:45]} 32. Rd3 {[%clk 00:14:44]} {[%emt 00:03:50]} axb3+ {[%clk
00:10:57]} {[%emt 00:01:37]} 33. axb3 {[%clk 00:15:12]} {[%emt 00:00:02]} Ke7
{[%clk 00:10:16]} {[%emt 00:01:10]} 34. g4 {[%clk 00:13:25]} {[%emt 00:02:18]}
f5 {[%clk 00:07:51]} {[%emt 00:02:54]} 35. gxf5 {[%clk 00:10:45]} {[%emt
00:03:10]} gxf5 {[%clk 00:08:15]} {[%emt 00:00:06]} 36. exf5 {[%clk 00:10:57]}
{[%emt 00:00:18]} Kf6 {[%clk 00:08:39]} {[%emt 00:00:06]} 37. Rxc3 {[%clk
00:11:17]} {[%emt 00:00:10]} Rb7 {[%clk 00:07:47]} {[%emt 00:01:22]} 38. Rf3
{[%clk 00:07:53]} {[%emt 00:03:54]} Rb4 {[%clk 00:04:50]} {[%emt 00:03:27]} 39.
Kc3 {[%clk 00:07:45]} {[%emt 00:00:38]} Rxh4 {[%clk 00:03:31]} {[%emt
00:01:49]} 40. b4 {[%clk 00:08:07]} {[%emt 00:00:08]} Rh1 {[%clk 00:03:05]}
{[%emt 00:00:56]} 41. b5 {[%clk 00:07:57]} {[%emt 00:00:41]} Rc1+ {[%clk
00:30:05]} {[%emt 00:03:29]} 42. Kb2 {[%clk 00:35:34]} {[%emt 00:02:54]} Rc5
{[%clk 00:29:37]} {[%emt 00:00:58]} 43. b6 {[%clk 00:35:36]} {[%emt 00:00:29]}
Rc8 {[%clk 00:30:03]} {[%emt 00:00:03]} 44. b7 {[%clk 00:34:41]} {[%emt
00:01:24]} 1/2-1/2